Cogmind - Beta 13 @@@ ROGUE MODE // 2024.04.15 @ 21:02:55 Player: Gafrankl Result: Destroyed by Y-45 Defender with Beam Rifle Performance ------------- Evolutions (2) 1000 Regions Visited (5) 1000 Robots Destroyed (18) 90 Value Destroyed (767) 767 Prototype IDs (0) 0 Alien Tech Used (0) 0 Bonus (200) 200 TOTAL SCORE: 3057 Bonus ------- Pacifist 200 Cogmind --------- Core Integrity 0/550 Matter 300/300 Energy 100/100 System Corruption 5% Temperature Cool (27) Movement Core (1500) Ox29 Location -8/Storage Parts ------- > --- POWER (1) -------- (None) > --- PROPULSION (4) --- (None) > --- UTILITY (4) ------ Medium Storage Unit Huge Storage Unit Targeting Computer > --- WEAPON (2) ------- (None) > --- INVENTORY (25) --- Ion Engine Light Ion Engine Light Nuclear Core Small Storage Unit Peak State ------------ > --- POWER ------------ Ion Engine > --- PROPULSION ------- Light Treads Light Treads Light Treads Light Treads > --- UTILITY ---------- Medium Storage Unit Huge Storage Unit Targeting Computer High-powered Tractor Beam > --- WEAPON ----------- Heavy Assault Rifle Katana > --- INVENTORY -------- Ion Engine Light Ion Engine Improved Ion Engine Light Nuclear Core Small Storage Unit EM Pulse Gun Light Assault Rifle Datajack [Rating: 16] Favorites ----------- Power Ion Engine Engine Ion Engine Propulsion Light Treads Treads Light Treads Leg Aluminum Leg Utility Medium Storage Unit Device High-powered Tractor Beam Storage Medium Storage Unit Processor Targeting Computer Protection Propulsion Shielding Weapon Light Assault Rifle Energy Gun Medium Laser Ballistic Gun Light Assault Rifle Slashing Weapon Katana Special Melee Weapon Datajack Build | -11 -10 -9 -9 -8 -8 ------- Run | Yrd Mat Mat Min Mat Sto Slots Evolved 4 | . . 2 . 2 . Power . | . . . . . . Propulsion 2 | . . 1 . 1 . Utility 2 | . . 1 . 1 . Weapon . | . . . . . . Parts Attached 29 | 5 3 2 1 3 15 Power 2 | 1 . . . . 1 Engine 2 | 1 . . . . 1 Core . | . . . . . . Reactor . | . . . . . . Propulsion 12 | 2 . 1 . 1 8 Treads 8 | 2 . 1 . 1 4 Leg 4 | . . . . . 4 Wheel . | . . . . . . Hover . | . . . . . . Flight . | . . . . . . Utility 8 | . 3 1 . 2 2 Device 1 | . . . . . 1 Storage 4 | . 2 . . 2 . Processor 1 | . . 1 . . . Hackware . | . . . . . . Protection 2 | . 1 . . . 1 Artifact . | . . . . . . Weapon 7 | 2 . . 1 . 4 Energy Gun 2 | 1 . . . . 1 Energy Cannon . | . . . . . . Ballistic Gun 3 | 1 . . 1 . 1 Ballistic Cannon . | . . . . . . Launcher . | . . . . . . Special Weapon . | . . . . . . Impact Weapon . | . . . . . . Slashing Weapon 1 | . . . . . 1 Piercing Weapon . | . . . . . . Special Melee Weapon 1 | . . . . . 1 Unidentified Prototypes . | . . . . . . Parts Lost 18 | . . . . . 18 Power 1 | . . . . . 1 Propulsion 10 | . . . . . 10 Utility 3 | . . . . . 3 Weapon 4 | . . . . . 4 Highest Loss Streak 5 | . . . . . 5 To Critical Strikes 1 | . . . . . 1 Average Slot Usage (%) 86 | . 94 100 100 100 75 Engine 7 | . 14 11 11 9 3 Treads 24 | . 28 33 33 36 19 Leg 2 | . . . . . 5 Device 2 | . . . . . 4 Storage 14 | . 11 11 11 18 18 Processor 7 | . . 11 11 9 9 Protection 6 | . 11 11 11 9 2 Energy Gun 4 | . 14 11 4 . . Ballistic Gun 9 | . 14 11 17 18 3 Slashing Weapon 4 | . . . . . 7 Naked Turns . | . . . . . . Heaviest Build 101 | 8 19 19 20 100 101 Greatest Support 80 | 40 40 60 60 80 80 Greatest Overweight (x) 30 | . . . . 1 30 Average Overweight (x) . | . . . . 1 1 Largest Inventory Capacity 25 | 5 10 10 10 25 25 Average Capacity 16 | 5 7 10 10 24 25 Most Carried 10 | 2 8 7 10 9 9 Average Carried 6 | . 4 6 8 8 6 Final Capacity 25 | 5 10 10 10 25 25 Final Carried 10 | 2 8 7 10 8 4 Class Distribution -------------------- 87% | Mutant 12% | Scavenger-Mutant Dominant Class ---------------- Mutant | -10/Materials Mutant | -9/Materials Mutant | -9/Mines Mutant | -8/Materials Mutant | -8/Storage Resources | -11 -10 -9 -9 -8 -8 ----------- Run | Yrd Mat Mat Min Mat Sto Matter Collected 501 | 232 . . 101 . 168 Remotely 55 | . . . . . 55 Salvage Created 938 | . . . 244 . 694 Parts 46 | . . . 15 . 31 Haulers Intercepted . | . . . . . . Recyclers Shooed 1 | . . . . . 1 Parts Field Recycled . | . . . . . . Retrieved Matter . | . . . . . . Parts Self-Destructed . | . . . . . . Prevented . | . . . . . . Kills | -11 -10 -9 -9 -8 -8 ------- Run | Yrd Mat Mat Min Mat Sto Combat Hostiles Destroyed 17 | . . . 4 . 13 Melee 12 | . . . . . 12 Guns 5 | . . . 4 . 1 Classes Destroyed 5 | . . . 3 . 2 Recycler 1 | . . . 1 . . Grunt 12 | . . . 2 . 10 Brawler 1 | . . . . . 1 Duelist 2 | . . . 2 . . Sentry 2 | . . . . . 2 Best Kill Streak 5 | . . . 2 . 5 Combat Bots Only 5 | . . . 2 . 5 Max Kills in Single Turn 1 | . . . 1 . 1 Gunslinging . | . . . . . . Exploded . | . . . . . . Melee 1 | . . . . . 1 Uniques/NPCs Destroyed . | . . . . . . Combat | -11 -10 -9 -9 -8 -8 -------- Run | Yrd Mat Mat Min Mat Sto Hostile Shots Fired 237 | . . . 4 . 233 Missed 63 | . . . 2 . 61 Damage Taken 2661 | . . . 20 . 2641 Core 569 | . . . 10 . 559 Absorbed by Shields . | . . . . . . Redirected to Shielding 53 | . . . . . 53 Core Remaining (%) 99 | 100 100 . 97 . . Volleys Fired 30 | . . . 11 . 19 Largest 2 | . . . 2 . 1 Hottest 70 | . . . 70 . 40 Shots Fired 41 | . . . 22 . 19 Gun 41 | . . . 22 . 19 Cannon . | . . . . . . Launcher . | . . . . . . Special . | . . . . . . Kinetic 24 | . . . 15 . 9 Thermal 7 | . . . 7 . . Explosive . | . . . . . . Electromagnetic 10 | . . . . . 10 Robot Hit Streak 10 | . . . 10 . 9 Robot Miss Streak 3 | . . . 3 . 3 Penetration Max . | . . . . . . Secondary Targets . | . . . . . . Shots Hit Robots 76 | . . . 18 . 58 Core Hits 33 | . . . 14 . 19 Critical Kills . | . . . . . . Critical Parts Destroyed . | . . . . . . Critical Strikes 5 | . . . . . 5 Sever 5 | . . . . . 5 Melee Attacks 56 | . . . . . 56 Impact . | . . . . . . Slashing 50 | . . . . . 50 Piercing . | . . . . . . Sneak Attacks 2 | . . . . . 2 Combat Hostiles . | . . . . . . Follow-up Attacks . | . . . . . . Damage Inflicted 1689 | . . . 203 . 1486 Guns 387 | . . . 203 . 184 Cannons . | . . . . . . Explosions . | . . . . . . Melee 1277 | . . . . . 1277 Ramming 25 | . . . . . 25 Kinetic 240 | . . . 127 . 113 Thermal 76 | . . . 76 . . Explosive . | . . . . . . Electromagnetic 71 | . . . . . 71 Impact . | . . . . . . Slashing 1277 | . . . . . 1277 Piercing . | . . . . . . Highest Corruption 5 | . . . . . 5 Average Corruption 5 | . . . . . 5 Corruption Purged . | . . . . . . Corruption Blocked . | . . . . . . Effects 11 | . . . . . 11 Message Errors 1 | . . . . . 1 Matter Fused 3 | . . . . . 3 Heat Flow Errors 2 | . . . . . 2 Energy Discharges 2 | . . . . . 2 Parts Rejected 1 | . . . . . 1 Data Loss (minor) 1 | . . . . . 1 Alerts 1 | . . . . . 1 Overload Shots . | . . . . . . Overflow Damage 53 | . . . . . 53 Projectiles . | . . . . . . Explosions . | . . . . . . Melee 53 | . . . . . 53 Knockbacks . | . . . . . . Impact . | . . . . . . Kinetic . | . . . . . . Secondary . | . . . . . . Self-Inflicted Damage . | . . . . . . Shots . | . . . . . . Rammed 8 | . . . . . 8 Targets Rammed 8 | . . . . . 8 Kicked . | . . . . . . Crushed . | . . . . . . Highest Temperature 263 | . . . 63 . 263 Average Temperature 59 | . . . 28 . 76 Received Heat Transfer 1362 | . . . 12 . 1350 Siege Activations . | . . . . . . Robots Corrupted . | . . . . . . Combat Hostiles . | . . . . . . Parts Fried . | . . . . . . Impact Corruptions . | . . . . . . Robots Melted . | . . . . . . Combat Hostiles . | . . . . . . Parts Melted 1 | . . . 1 . . Heat Transferred 222 | . . . 222 . . Parts Sabotaged . | . . . . . . Parts Stolen . | . . . . . . Parts Stripped . | . . . . . . Power Chain Reactions . | . . . . . . Alert | -11 -10 -9 -9 -8 -8 ------- Run | Yrd Mat Mat Min Mat Sto Peak Influence 166 | . 4 1 120 46 166 Initial 46 | . . 1 . 46 18 Average 51 | . 1 1 82 46 64 Maximum Alert Level . | . . . . . . Low Security (%) 100 | 100 100 100 100 100 100 Level 1 . | . . . . . . Level 2 . | . . . . . . Level 3 . | . . . . . . Level 4 . | . . . . . . Level 5 . | . . . . . . High Security . | . . . . . . Max Security . | . . . . . . Squads Dispatched . | . . . . . . Investigation . | . . . . . . Extermination . | . . . . . . Reinforcement . | . . . . . . Assault . | . . . . . . Garrison . | . . . . . . Intercept . | . . . . . . Searches Triggered . | . . . . . . Construction Impeded . | . . . . . . Haulers Reinforced . | . . . . . . Active Scanning Responses . | . . . . . . Cargo Convoy Interrupts . | . . . . . . Stealth | -11 -10 -9 -9 -8 -8 --------- Run | Yrd Mat Mat Min Mat Sto Distress Signals 1 | . . . . . 1 Communications Jammed . | . . . . . . Distress Signals . | . . . . . . Times Spotted 28 | . . . 8 . 20 Peak Tracking Total 4 | . . . 2 . 4 Tactical Retreats . | . . . . . . Traps | -11 -10 -9 -9 -8 -8 ------- Run | Yrd Mat Mat Min Mat Sto Traps Triggered 2 | . . . . . 2 Indirectly . | . . . . . . Trap Hack Attempts . | . . . . . . Triggered . | . . . . . . Disarmed . | . . . . . . Reprogrammed . | . . . . . . Reused . | . . . . . . Traps Extracted . | . . . . . . Installed . | . . . . . . Triggered . | . . . . . . Machines | -11 -10 -9 -9 -8 -8 ---------- Run | Yrd Mat Mat Min Mat Sto Machines Disabled . | . . . . . . Max in Single Turn . | . . . . . . Machines Repaired . | . . . . . . Machines Dismantled . | . . . . . . Machines Sabotaged . | . . . . . . Overloaded Fab Kills . | . . . . . . Hacking | -11 -10 -9 -9 -8 -8 --------- Run | Yrd Mat Mat Min Mat Sto Machines Accessed 4 | . 2 1 . . 1 Terminals 4 | . 2 1 . . 1 Fabricators . | . . . . . . Repair Stations . | . . . . . . Recycling Units . | . . . . . . Scanalyzers . | . . . . . . Garrison Access . | . . . . . . Total Hacks 8 | . 4 2 . . 2 Successful 5 | . 2 2 . . 1 Failed 3 | . 2 . . . 1 Catastrophic 2 | . 1 . . . 1 Database Lockouts . | . . . . . . Manual . | . . . . . . Terminals 8 | . 4 2 . . 2 Fabricators . | . . . . . . Repair Stations . | . . . . . . Recycling Units . | . . . . . . Scanalyzers . | . . . . . . Garrison Access . | . . . . . . Terminal Hacks 5 | . 2 2 . . 1 Record 2 | . 2 . . . . Level Access Points 1 | . . . . . 1 Alert Level 1 | . . 1 . . . Zone Layout 1 | . . 1 . . . Fabricator Hacks . | . . . . . . Repair Station Hacks . | . . . . . . Recycling Unit Hacks . | . . . . . . Scanalyzer . | . . . . . . Garrison Access Hacks . | . . . . . . Unauthorized Hacks . | . . . . . . Terminals . | . . . . . . Fabricators . | . . . . . . Repair Stations . | . . . . . . Recycling Units . | . . . . . . Scanalyzers . | . . . . . . Garrison Access . | . . . . . . Data Cores Recovered . | . . . . . . Used . | . . . . . . Hacking Detections 3 | . 1 1 . . 1 Full Trace Events . | . . . . . . Feedback Events . | . . . . . . Feedback Blocked . | . . . . . . Robot Schematics Acquired . | . . . . . . Robots Built . | . . . . . . Authchips . | . . . . . . Time . | . . . . . . Total Robot Build Rating . | . . . . . . Part Schematics Acquired . | . . . . . . Parts Built . | . . . . . . Authchips . | . . . . . . Time . | . . . . . . Total Part Build Rating . | . . . . . . Parts Repaired . | . . . . . . Time . | . . . . . . Parts Recycled . | . . . . . . Recycled Matter . | . . . . . . Retrieved Matter . | . . . . . . Retrieved Components . | . . . . . . Parts Scanalyzed . | . . . . . . Part Schematics Acquired . | . . . . . . Parts Damaged . | . . . . . . Bothacking | -11 -10 -9 -9 -8 -8 ------------ Run | Yrd Mat Mat Min Mat Sto Used RIF Installer . | . . . . . . Robots Hacked 1 | . . . . . 1 Non-combat . | . . . . . . Combat 1 | . . . . . 1 Robot Hacks Applied 2 | . . . . . 2 parse_system 2 | . . . . . 2 Relay Couplers Released . | . . . . . . Fabnet Peak Effective % . | . . . . . . Robots Rewired . | . . . . . . Allies Hacked . | . . . . . . Hacks Repelled . | . . . . . . Allies | -11 -10 -9 -9 -8 -8 -------- Run | Yrd Mat Mat Min Mat Sto Total Allies . | . . . . . . Largest Group . | . . . . . . Highest-Rated Group . | . . . . . . Highest-Rated Ally . | . . . . . . Total Orders . | . . . . . . Ally Attacks . | . . . . . . Total Damage . | . . . . . . Kills . | . . . . . . Allies Corrupted . | . . . . . . Allies Melted . | . . . . . . Intel | -11 -10 -9 -9 -8 -8 ------- Run | Yrd Mat Mat Min Mat Sto Robot Analysis Total . | . . . . . . Derelict Logs Recovered . | . . . . . . Drone Launches . | . . . . . . Drone Recoveries . | . . . . . . Exploration | -11 -10 -9 -9 -8 -8 ------------- Run | Yrd Mat Mat Min Mat Sto Turns Passed 1586 | 97 279 43 361 21 785 Spaces Moved 641 | 59 168 26 194 8 186 Core 8 | 7 . . . . 1 Treads 599 | 52 168 26 194 8 151 Legs 34 | . . . . . 34 Wheels . | . . . . . . Hover . | . . . . . . Flight . | . . . . . . Fastest Speed 50 | 50 160 160 160 240 240 Average Speed 198 | 146 160 160 160 240 293 Slowest Speed 1550 | 160 160 160 160 240 1550 Overloaded Moves . | . . . . . . Propulsion Burnouts . | . . . . . . Robots Hopped . | . . . . . . Cave-ins Triggered . | . . . . . . Exploration Rate (%) 17 | 3 33 3 40 2 26 Regions Visited 5 Branch Regions 2 Pre-discovered Areas . | . . . . . . Known Exits Taken . | . . . . . . Unknown Exits Taken 5 | 1 1 1 1 1 . Scrap Searched . | . . . . . . Spaces Dug . | . . . . . . Terrain Destroyed . | . . . . . . Melee . | . . . . . . Projectile . | . . . . . . AOE . | . . . . . . Terrain Rammed . | . . . . . . Walls Destroyed . | . . . . . . Machines Disabled . | . . . . . . Actions | -11 -10 -9 -9 -8 -8 --------- Run | Yrd Mat Mat Min Mat Sto Total 812 | 67 177 28 225 10 305 Wait 35 | 2 . . 15 . 18 Move 636 | 58 167 25 193 7 186 Hop . | . . . . . . Pick Up 17 | 2 7 1 4 . 3 Fast Attach 13 | 5 1 . . . 7 Attach 12 | . 1 2 . 2 7 Detach . | . . . . . . Swap 4 | . 1 . 1 1 1 Drop 1 | . . . 1 . . Fire 30 | . . . 11 . 19 Melee 56 | . . . . . 56 Ram 1 | . . . . . 1 Kick . | . . . . . . Crush 7 | . . . . . 7 Escape Stasis . | . . . . . . Rewire . | . . . . . . Trap . | . . . . . . Miscellaneous . | . . . . . . Route ------- -11/Scrapyard -10/Materials -9/Materials -9/Mines -8/Materials -8/Storage (discovered 1 exit: Fac) History --------- Turn | Location | Event 7 | -11/Scrapyard | Discovered new exit (range 14) 98 | -11/Scrapyard | Entered Materials 293 | -10/Materials | Discovered new exit (range 7) 301 | -10/Materials | Build established: Mutant 377 | -10/Materials | Entered another Materials area 377 | -9/Materials | Evolved 2 slots: Propulsion x1, Utility x1 379 | -9/Materials | Discovered new exit (range 7) 420 | -9/Materials | Entered Mines 543 | -9/Mines | Joined a pair of Derelicts in attacking an 0b10 outpost 765 | -9/Mines | Discovered new exit (range 10) 781 | -9/Mines | Entered Materials 781 | -8/Materials | Evolved 2 slots: Propulsion x1, Utility x1 785 | -8/Materials | Discovered new exit (range 7) 802 | -8/Materials | Entered Storage 1003 | -8/Storage | Identified exit to Factory 1087 | -8/Storage | Lost 3 parts (1p1n1w) 1173 | -8/Storage | Lost 4 parts (3n1w) 1298 | -8/Storage | Core integrity fell below 50% 1570 | -8/Storage | Core integrity fell below 20% 1587 | -8/Storage | Destroyed by Y-45 Defender with Beam Rifle Last Messages --------------- Jacked Y-45 Defender... Command string: suizide No effect. Jacked Y-45 Defender... Command string: overload_power >>parse_system Reading system data... Critical hit (Burn: +37). Lgt. Armor Plating destroyed. Jacked Y-45 Defender... Lgt. Treads destroyed. Jacked Y-45 Defender... System corrupted: Energy discharge (-20). Slammed into Y-45 Defender. Lgt. Treads destroyed. Slammed into Y-45 Defender. Lgt. Treads destroyed. Datajack destroyed. Slammed into Y-45 Defender. Critical hit (Burn: +37). Map ----- +----------------------------------------------------+ | ?????????????????????????????????????????????????? | | ?????????????????????????????????????????????????? | | ?????????????????????????????????????????????????? | | ?????????????????????????????????????????????????? | | ?????????????????????????????????????????????????? | | ?????????????????????????????????????????????????? | | ?????????????????????????????????????????????????? | | ??????????????????????? ?????????????????????? | | ??????????????????????? ?????????????????????? | | ??????????????????????? ?????????????????????? | | ??????????????????????? ?????????????????????? | | ??????????????????????? ?????????????????????? | | ???????????????????????# #?????????????????????? | | ???????????????????????# #?????????????????????? | | ???????????????????????# #?????????????????????? | | ???????????????????????# #?????????????????????? | | ???????????????????????# #?????????????????????? | | ???????????????????????+ #?????????????????????? | | ???????????????????????# #?????????????????????? | | ???????????????????????# #?????????????????????? | | ???????????????????????# #?????????????????????? | | ???????????????????????# = #?????????????????????? | | ?????????????###########^ /#?????????????????????? | | ?????????????# # #?????????????????????? | | ?????????????# # #?????????????????????? | | ?????????????# """ # @Y#?????????????????????? | | ##???????????# """ # #?????????????????????? | | #???????????#""" """ Y ###???????????????????? | | #?#####?????#"R """ #r + "???????????????????? | | #?#"""#??????""" """ # #T#???????????????????? | | ###"T"######? # ###???????????????????? | | ## #??###### ## ##????????????????????? | | ## ########### #????????????????????? | | ## """ # " #????????????????????? | | ## """ +% "T #????????????????????? | | ## """" %# #????????????????????? | | ### """!%### ####### #????????????????????? | | ??# %#?# #?????#####+#????????????????????? | | ??# % !#?# #????????????????????????????????? | | ??#+#########?# #????????????????????????????????? | | ###%########??# #????????????????????????????????? | | * % + ???????????????????????????????? | | ######+#####??##?????????????????????????????????? | | ?????????????????????????????????????????????????? | | ?????????????????????????????????????????????????? | | ?????????????????????????????????????????????????? | | ?????????????????????????????????????????????????? | | ?????????????????????????????????????????????????? | | | | | +----------------------------------------------------+ Best States ------------- Heat Dissipation 31 Energy Generation 12 Energy Capacity 265 Matter Stores 300 Matter Capacity 300 Sight Range 16 Terrain Scan Density 10 Armor Coverage 150 Propulsion Shielding 33 Evasion (%) 40 Targeting Accuracy 5 Recoil Reduction 4 Item Schematics ----------------- None Robot Schematics ------------------ None Fabricated ------------ Nothing Alien Tech Used ----------------- None Achievements -------------- None Challenges ------------ None Game ------ Seed ResetCatalystSheargun Manual? 0 Play Time 00:21:28 Cumulative 3.2 hours Start 2024.04.14 @ 23:24:33 End 2024.04.15 @ 21:02:55 Sessions 2 Manual Loads 0 Difficulty Rogue Special Mode None Game No. 4 Rogue 4 Adventurer 0 Explorer 0 Win Type - Total 0 Types 0/0/0/0/0/0/0/0/0 Lore% 2 Gallery% 8 Achievement% 8 Wizard Run 0 Options --------- Layout 1 ASCII 0 Keyboard 0 Movement Arrows Keybinds 0 Fullscreen 1 Font 24/Smallcaps Map View 50x35 Zoom Use 0% Tactical HUD 0 Map Filters NONE Filters NONE Steam 1 RUN: dedd9337-f10e-4bcb-9fd0-c919181cc7af